bitfinex/quotes_SOLUSD_20240811
["timestamp","ask_amount","ask_price","bid_price","bid_amount"]
[1723378869941,6.1239,152.63,152.57,20.0]
[1723378870253,13.6974,152.65,152.57,20.0]
[1723378870254,13.6974,152.65,152.58,45.0]
[1723378870458,13.6974,152.65,152.59,20.0]
[1723378870657,13.6974,152.65,152.6,45.0]
[1723378871027,13.6974,152.65,152.61,20.0]
[1723378871228,13.6974,152.65,152.56,0.12549]
[1723378871229,13.6974,152.65,152.46,20.0]
[1723378871445,13.6974,152.65,152.5,26.2604]
[1723378872142,0.12549,152.64,152.5,26.2604]
[1723378873250,0.50196,152.64,152.5,26.2604]
[1723378873641,0.37647,152.64,152.5,26.2604]
[1723378873828,0.25098,152.64,152.5,26.2604]
[1723378874036,0.12549,152.64,152.5,26.2604]
[1723378874559,0.50196,152.64,152.51,45.0]
[1723378874764,0.37647,152.64,152.52,20.0]
[1723378875055,13.6974,152.65,152.53,45.0]
[1723378875361,13.6974,152.65,152.54,20.50196]
[1723378875561,6.1239,152.67,152.56,0.12549]
[1723378875864,6.1239,152.67,152.56,20.50196]
[1723378876033,6.1239,152.67,152.57,45.0]
[1723378876239,6.1239,152.67,152.58,20.0]
[1723378876439,6.1239,152.67,152.59,45.0]
[1723378876851,6.1239,152.67,152.58,20.0]
[1723378877055,6.1239,152.67,152.56,20.0]
[1723378877231,0.12549,152.66,152.57,45.0]
[1723378877432,0.12549,152.66,152.58,20.0]
[1723378877639,0.50196,152.66,152.58,20.0]
[1723378877949,0.50196,152.66,152.56,20.0]
[1723378878154,0.50196,152.66,152.52,20.0]
[1723378878333,0.37647,152.66,152.52,20.0]
[1723378878539,0.12549,152.66,152.52,20.0]
[1723378878832,0.25098,152.66,152.52,20.0]
[1723378879356,0.25098,152.66,152.53,0.12549]
[1723378879669,6.1239,152.67,152.54,0.12549]
[1723378879839,6.1239,152.67,152.54,21.43603285]
[1723378880039,6.1239,152.67,152.55,45.37647]
[1723378880259,6.1239,152.67,152.56,20.0]
[1723378880572,6.1239,152.67,152.57,45.12549]
[1723378880773,6.1239,152.67,152.58,20.0]
[1723378881069,6.1239,152.67,152.59,45.0]
[1723378882739,6.1239,152.67,152.6,20.25098]
[1723378883038,6.1239,152.67,152.61,45.0]
[1723378883239,6.1239,152.67,152.62,20.0]
[1723378883459,6.1239,152.67,152.63,45.0]
[1723378884470,6.1239,152.67,152.62,20.0]
[1723378884637,6.1239,152.67,152.58,0.12549]
[1723378885068,6.1239,152.67,152.58,0.25098]
[1723378885554,6.1239,152.67,152.52,20.0]
[1723378885865,6.1239,152.67,152.53,1.31049492]
[1723378886571,6.1239,152.67,152.52,20.0]
[1723378886768,6.1239,152.67,152.54,0.12549]
[1723378886939,6.1239,152.67,152.54,20.25098]
[1723378887141,6.1239,152.67,152.55,45.25098]
[1723378887450,6.1239,152.67,152.56,20.25098]
[1723378887649,6.1239,152.67,152.57,45.25098]
[1723378887945,6.1239,152.67,152.58,20.25098]
[1723378888140,6.1239,152.67,152.59,45.25098]
[1723378888342,6.1239,152.67,152.6,20.0]
[1723378888560,6.1239,152.67,152.61,45.0]
[1723378888738,6.1239,152.67,152.62,20.0]
[1723378888949,6.1239,152.67,152.63,45.0]
[1723378892345,13.6974,152.69,152.63,45.0]
[1723378892544,20.2478,152.69,152.63,45.0]
[1723378893038,6.5504,152.69,152.63,45.0]
[1723378893275,0.8166805,152.72,152.64,20.0]
[1723378893450,0.8166805,152.72,152.65,45.0]
[1723378893646,0.8166805,152.72,152.66,20.0]
[1723378896457,6.67589,152.69,152.52,15.1296]
[1723378896656,6.67589,152.69,152.37,67.20110466]
[1723378896657,6.67589,152.61,152.47,15.1296]
[1723378896863,0.12549,152.59,152.47,15.1296]
[1723378897160,0.25098,152.59,152.47,15.1296]
[1723378897371,0.12549,152.57,152.39,21.6372]
[1723378897565,0.25098,152.57,152.42,6.79916195]
[1723378897775,0.12549,152.56,152.42,1.31146458]
[1723378897977,0.12549,152.56,152.42,8.11084258]
[1723378898784,0.25098,152.57,152.43,46.81339288]
[1723378898972,0.25098,152.57,152.43,1.31143288]
[1723378899161,0.25098,152.57,152.42,8.11081088]
[1723378899383,0.12549,152.57,152.43,1.31143288]
[1723378899763,0.12549,152.57,152.42,6.799378]
[1723378899993,0.12549,152.57,152.43,20.0]
[1723378900228,0.12549,152.57,152.44,0.25098]
[1723378900361,393.7974,152.6,152.45,0.25098]
[1723378900564,0.12549,152.59,152.46,0.25098]
[1723378900796,0.12549,152.59,152.47,0.25098]
[1723378901091,0.12549,152.59,152.48,0.25098]
[1723378901289,0.12549,152.59,152.49,0.12549]
[1723378901470,0.12549,152.59,152.49,20.12549]
[1723378901671,0.12549,152.59,152.5,45.0]
[1723378901870,0.12549,152.59,152.51,20.0]
[1723378902098,0.12549,152.59,152.52,45.0]
[1723378903995,13.1974,152.6,152.52,45.0]
[1723378904202,13.1974,152.6,152.53,20.0]
[1723378904402,13.1974,152.6,152.54,45.0]
[1723378904886,0.12549,152.59,152.53,20.0]
[1723378905089,0.12549,152.59,152.49,0.12549]
[1723378905278,0.12549,152.59,152.49,45.12549]
[1723378905614,0.12549,152.59,152.5,20.0]
[1723378905910,13.1974,152.6,152.51,45.0]
[1723378906275,13.1974,152.6,152.52,20.0]
[1723378906478,13.1974,152.6,152.53,45.0]
[1723378906773,13.1974,152.6,152.54,20.0]
[1723378907976,6.5504,152.61,152.54,20.0]
[1723378908181,6.5504,152.61,152.55,45.0]
[1723378909082,6.5504,152.61,152.54,20.0]
[1723378909284,6.5504,152.61,152.5,0.12549]
[1723378909687,6.5504,152.61,152.5,20.12549]
[1723378909888,6.5504,152.61,152.51,45.0]
[1723378910182,6.5504,152.61,152.52,20.0]
[1723378910388,6.5504,152.61,152.53,45.37647]
[1723378910610,6.5504,152.61,152.54,20.0]
[1723378910807,6.5504,152.61,152.55,45.0]
[1723378911312,6.5504,152.61,152.56,20.0]
[1723378912309,6.5504,152.61,152.57,45.0]
[1723378913200,13.1974,152.64,152.57,45.0]
[1723378915801,0.12549,152.63,152.56,20.0]
[1723378915991,0.50196,152.63,152.48,21.3109799]
[1723378916316,0.25098,152.63,152.48,20.0]
[1723378916492,0.12549,152.63,152.49,1.31082172]
[1723378916692,13.1974,152.64,152.49,1.31082172]
[1723378917189,13.1974,152.64,152.5,0.37647]
[1723378917405,13.1974,152.64,152.52,0.12549]
[1723378917611,13.1974,152.64,152.52,0.37647]
[1723378917807,13.1974,152.64,152.53,0.12549]
[1723378918312,13.1974,152.64,152.53,45.12549]
[1723378918512,13.1974,152.64,152.54,20.25098]
[1723378918822,13.1974,152.64,152.55,45.0]
[1723378918985,13.1974,152.64,152.56,20.0]
[1723378919186,13.1974,152.64,152.57,45.0]
[1723378920321,13.1974,152.64,152.58,45.0]
[1723378920511,13.1974,152.64,152.57,45.0]
[1723378920713,0.12549,152.63,152.57,45.0]
[1723378920895,0.25098,152.63,152.56,20.0]
[1723378921098,0.12549,152.63,152.57,45.0]
[1723378921499,0.12549,152.63,152.47,21.38]
[1723378921692,5.08846,152.63,152.47,21.38]
[1723378921917,0.12549,152.61,152.47,21.38]
[1723378922095,0.12549,152.58,152.43,28.18127504]
[1723378922411,0.12549,152.56,152.43,21.38]
[1723378922592,0.25098,152.56,152.43,21.38]
[1723378923421,0.25098,152.56,152.44,0.25098]
[1723378923627,0.25098,152.56,152.41,6.8005507]
[1723378923628,0.12549,152.54,152.41,6.8005507]
[1723378924101,0.25098,152.55,152.41,6.8005507]
[1723378924289,0.25098,152.55,152.41,8.11212615]
[1723378924489,0.25098,152.56,152.41,8.11212615]
[1723378924690,0.12549,152.55,152.42,20.0]
[1723378924909,0.12549,152.54,152.42,20.0]
[1723378925921,0.12549,152.54,152.43,0.12549]
[1723378926230,6.138,152.57,152.44,0.12549]
[1723378926415,6.138,152.57,152.44,0.50196]
[1723378926595,6.138,152.57,152.44,45.50196]
[1723378926910,6.138,152.57,152.46,0.12549]
[1723378927221,6.138,152.57,152.46,45.50196]
[1723378927727,6.138,152.57,152.47,20.0]
[1723378927892,6.138,152.57,152.48,45.12549]
[1723378928098,6.138,152.57,152.48,45.0]
[1723378928813,0.50196,152.56,152.48,45.0]
[1723378929530,6.138,152.57,152.48,45.0]
[1723378933195,6.138,152.57,152.49,20.37647]
[1723378933517,6.138,152.57,152.5,45.0]
[1723378933818,6.138,152.57,152.51,20.0]
[1723378934030,6.138,152.57,152.52,45.0]
[1723378934231,6.138,152.57,152.53,20.0]
[1723378934419,6.138,152.57,152.54,45.0]
[1723378935205,6.138,152.57,152.53,20.0]
[1723378935528,6.138,152.57,152.48,20.0]
[1723378935836,6.138,152.57,152.48,20.12549]
[1723378936406,6.138,152.57,152.48,0.12549]
[1723378936629,6.138,152.57,152.48,0.37647]
[1723378937522,6.138,152.57,152.44,20.0]
[1723378937709,6.138,152.57,152.45,0.12549]
[1723378938906,6.138,152.57,152.46,0.12549]
[1723378939104,6.138,152.57,152.46,20.37647]
[1723378939435,6.138,152.57,152.47,45.0]
[1723378939607,6.138,152.57,152.48,20.0]
[1723378939806,6.138,152.57,152.49,45.0]
[1723378940007,6.138,152.57,152.5,20.0]
[1723378941045,6.138,152.57,152.51,45.0]
[1723378942238,6.138,152.57,152.52,20.0]
[1723378942411,6.138,152.57,152.53,45.0]
[1723378943138,4.5859,152.64,152.53,45.0]
[1723378943139,6.6021,152.68,152.54,16.4631]
[1723378943304,6.6021,152.68,152.55,45.0]
[1723378943510,6.6021,152.68,152.56,20.0]
[1723378943511,4.5854,152.66,152.56,20.0]
[1723378943711,4.5854,152.66,152.57,45.0]
[1723378944251,4.5851,152.67,152.57,45.0]
[1723378944619,0.12549,152.66,152.57,45.0]
[1723378945143,6.6021,152.68,152.57,45.0]
[1723378945325,4.585,152.67,152.57,45.0]
[1723378945515,6.6021,152.68,152.57,45.0]
[1723378945716,4.5859,152.64,152.52,0.12549]
[1723378946017,4.5865,152.63,152.48,6.5152]
[1723378946218,19.7995,152.62,152.48,6.5152]
[1723378946433,19.7995,152.62,152.5,19.06092137]
[1723378946638,0.50196,152.61,152.5,16.4631]
[1723378947237,0.50196,152.61,152.46,6.35307551]
[1723378947238,5.08896,152.61,152.46,15.7929]
[1723378947434,0.50196,152.61,152.46,15.7929]
[1723378947643,0.50196,152.61,152.46,18.46041262]
[1723378947818,0.50196,152.61,152.46,19.77168695]
[1723378948146,0.37647,152.61,152.46,19.77168695]
[1723378948318,0.12549,152.61,152.46,19.77168695]
[1723378948520,0.12549,152.61,152.47,20.0]
[1723378948719,0.12549,152.61,152.49,0.12549]
[1723378949142,19.7995,152.62,152.49,20.12549]
[1723378949325,19.7995,152.62,152.5,45.37647]
[1723378949531,19.7995,152.62,152.51,20.0]
[1723378949730,19.7995,152.62,152.52,45.0]
[1723378949932,19.7995,152.62,152.53,20.0]
[1723378950137,19.7995,152.62,152.54,45.0]
[1723378950819,400.3995,152.62,152.55,20.0]
[1723378951044,400.3995,152.62,152.56,45.0]
[1723378952157,400.3995,152.62,152.43,6.79542732]
[1723378952158,0.12549,152.59,152.43,6.79542732]
[1723378952322,0.25098,152.61,152.46,18.41615324]
[1723378952524,0.12549,152.59,152.46,18.41615324]
[1723378952756,0.12549,152.58,152.46,18.41615324]
[1723378953150,5.08966,152.58,152.46,15.7929]
[1723378953324,0.12549,152.56,152.46,15.7929]
[1723378954018,0.12549,152.56,152.44,6.5152]
[1723378954222,0.12549,152.54,152.42,15.7929]
[1723378955050,13.1974,152.55,152.42,17.10448886]
[1723378955347,13.1974,152.55,152.43,0.25098]
[1723378955559,0.12549,152.54,152.44,0.12549]
[1723378955862,0.12549,152.54,152.41,6.80973813]
[1723378956024,0.12549,152.52,152.4,2.64055221]
[1723378956354,0.25098,152.52,152.38,23.91531276]
[1723378956561,0.12549,152.52,152.38,22.60342402]
[1723378956921,0.12549,152.52,152.39,1.3117593]
[1723378957126,0.12549,152.52,152.38,22.60342402]
[1723378957333,0.12549,152.52,152.39,65.0]
[1723378957536,0.12549,152.52,152.39,20.0]
[1723378957737,0.50196,152.52,152.39,20.0]
[1723378958433,0.50196,152.52,152.38,25.31893027]
[1723378959854,0.50196,152.52,152.39,20.25098]
[1723378960149,0.12549,152.5,152.39,20.0]
[1723378960354,0.50196,152.5,152.39,20.0]
[1723378961451,0.50196,152.5,152.4,45.0]
[1723378961659,0.50196,152.5,152.41,20.0]
[1723378961954,0.50196,152.5,152.42,45.0]
[1723378967146,0.12549,152.5,152.42,45.0]
[1723378967449,6.1534,152.49,152.42,45.0]
[1723378972246,0.12549,152.48,152.42,45.0]
[1723378973347,6.1534,152.49,152.42,45.0]
[1723378978772,19.3508,152.55,152.44,0.12549]
[1723378978989,19.3508,152.55,152.44,20.37647]
[1723378979200,19.3508,152.55,152.46,0.12549]
[1723378979375,19.3508,152.55,152.46,0.25098]
[1723378979559,19.3508,152.55,152.47,0.25098]
[1723378979755,19.3508,152.55,152.47,45.25098]
[1723378979959,19.3508,152.55,152.47,45.0]
[1723378980186,23.9397,152.55,152.47,45.0]
[1723378980577,0.12549,152.54,152.47,45.0]
[1723378980891,20.50196,152.54,152.39,21.5557]
[1723378981079,25.09086,152.54,152.39,21.5557]
[1723378981399,0.12549,152.52,152.39,15.158]
[1723378981557,0.12549,152.5,152.39,15.158]
[1723378981890,0.12549,152.48,152.38,2.64250007]
[1723378982182,0.25098,152.48,152.36,1.31227363]
[1723378982483,0.25098,152.48,152.35,15.158]
[1723378982807,0.12549,152.48,152.35,15.158]
[1723378982965,0.12549,152.48,152.36,1.31214031]
[1723378983160,13.1974,152.49,152.36,21.31214031]
[1723378984162,13.1974,152.49,152.37,45.50196]
[1723378984362,13.1974,152.49,152.39,0.12549]
[1723378984574,13.1974,152.49,152.39,45.50196]
[1723378984782,13.1974,152.49,152.4,20.0]
[1723378984970,13.1974,152.49,152.41,45.0]
[1723378985170,13.1974,152.49,152.42,20.0]
[1723378985368,13.1974,152.49,152.43,45.0]
[1723378987500,13.1974,152.49,152.36,1.31200556]
[1723378987669,13.1974,152.49,152.35,16.47010011]
[1723378988077,13.1974,152.49,152.36,1.3120484]
[1723378988600,13.1974,152.49,152.35,15.158]
[1723378989063,13.1974,152.49,152.37,0.12549]
[1723378989269,13.1974,152.49,152.37,0.25098]
[1723378989467,13.1974,152.49,152.38,0.25098]
[1723378989663,13.1974,152.49,152.39,0.12549]
[1723378989896,13.1974,152.49,152.39,45.12549]
[1723378991090,13.1974,152.49,152.4,20.0]
[1723378991297,13.1974,152.49,152.41,45.0]
[1723378991885,0.25098,152.48,152.41,45.0]
[1723378992190,0.12549,152.46,152.34,17.05996053]
[1723378992372,6.5966,152.47,152.36,20.0]
[1723378992572,0.12549,152.46,152.36,20.0]
[1723378992967,6.5966,152.47,152.36,20.0]
[1723378993174,0.12549,152.46,152.36,20.0]
[1723378993376,6.5966,152.47,152.37,0.12549]
[1723378994101,6.5966,152.47,152.35,0.12549]
[1723378994274,6.5966,152.47,152.37,0.12549]
[1723378994481,0.12549,152.46,152.36,0.12549]
[1723378994680,0.12549,152.46,152.36,0.37647]
[1723378995402,0.12549,152.46,152.36,20.37647]
[1723378995579,0.12549,152.46,152.34,2.66377982]
[1723378995580,20.25098,152.46,152.34,2.66377982]
[1723378995780,20.25098,152.46,152.31,33.30195581]
[1723378995998,0.12549,152.44,152.31,23.024]
[1723378996376,4.71719,152.45,152.31,23.024]
[1723378996889,0.12549,152.45,152.32,20.0]
[1723378997279,0.12549,152.45,152.34,0.12549]
[1723378997481,24.5914,152.46,152.34,20.37647]
[1723378997700,24.5914,152.46,152.35,45.12549]
[1723378997877,24.5914,152.46,152.36,0.12549]
[1723378998086,4.5922,152.43,152.35,45.0]
[1723378998409,13.69936,152.45,152.35,45.0]
[1723378998410,20.0,152.44,152.35,45.0]
[1723378998610,24.592,152.44,152.35,45.0]
[1723378998906,13.1974,152.45,152.35,45.0]
[1723378999107,13.1974,152.45,152.36,0.12549]
[1723378999603,13.1974,152.45,152.31,25.65574393]
[1723378999604,0.12549,152.44,152.31,25.65574393]
[1723378999803,4.5928,152.41,152.31,25.65574393]
[1723379000200,6.5966,152.39,152.31,2.63174393]
[1723379000511,6.5966,152.39,152.28,43.06641318]
[1723379000802,13.1974,152.38,152.28,43.06641318]
[1723379002193,13.1974,152.38,152.29,20.0]
[1723379002388,13.1974,152.38,152.3,0.25098]
[1723379002703,13.1974,152.38,152.31,0.25098]
[1723379003008,6.5966,152.39,152.32,1.56363637]
[1723379003194,6.5966,152.39,152.33,0.25098]
[1723379009310,6.5966,152.39,152.34,0.12549]
[1723379009498,13.1974,152.42,152.34,0.25098]
[1723379009682,13.1974,152.42,152.35,0.25098]
[1723379010314,13.1974,152.42,152.35,45.25098]
[1723379012313,6.3818,152.43,152.36,1.43787691]
[1723379012488,6.3818,152.43,152.37,0.25098]
[1723379012685,6.3818,152.43,152.38,0.12549]
[1723379012911,6.3818,152.43,152.37,45.25098]
[1723379015714,13.1974,152.46,152.38,21.43769145]
[1723379015897,6.3818,152.47,152.4,0.12549]
[1723379016103,13.1974,152.51,152.4,21.43730531]
[1723379016302,13.1974,152.51,152.42,0.12549]
[1723379016621,13.1974,152.51,152.42,1.43720297]
[1723379016821,386.9818,152.52,152.44,0.12549]
[1723379016992,386.9818,152.52,152.44,1.56235713]
[1723379017192,386.9818,152.52,152.46,0.12549]
[1723379017408,380.6,152.52,152.46,0.25098]
[1723379017607,380.6,152.52,152.47,0.25098]
[1723379017826,380.6,152.55,152.47,0.25098]
[1723379018516,19.5792,152.56,152.48,0.12549]
[1723379018819,19.5792,152.56,152.48,1.56217893]
[1723379019125,19.5792,152.56,152.49,0.25098]
[1723379019324,19.5792,152.61,152.5,0.12549]
[1723379019626,19.5792,152.61,152.5,1.56192991]
[1723379019796,4.5874,152.59,152.5,20.12549]
[1723379020000,4.5874,152.59,152.51,45.0]
[1723379020207,19.5792,152.61,152.51,45.0]
[1723379020811,0.12549,152.57,152.51,45.0]
[1723379021028,4.588,152.57,152.51,45.0]
[1723379021829,4.5877,152.58,152.51,45.0]
[1723379022011,0.12549,152.57,152.51,45.0]
[1723379022536,4.21319,152.58,152.51,45.0]
[1723379022737,4.96387,152.59,152.51,45.0]
[1723379023026,4.71289,152.59,152.51,45.0]
[1723379023927,24.1663,152.61,152.51,45.0]
[1723379024230,19.5792,152.61,152.51,45.0]
[1723379024531,24.1661,152.61,152.52,0.25098]
[1723379027605,4.5871,152.6,152.51,45.0]
[1723379027926,4.5876,152.59,152.5,45.0]
[1723379028133,4.71259,152.6,152.5,45.0]
[1723379028333,4.5871,152.6,152.5,45.0]
[1723379028631,24.166,152.61,152.51,0.25098]
[1723379028817,4.5871,152.6,152.51,0.25098]
[1723379029430,24.166,152.61,152.51,0.25098]
[1723379030137,0.12549,152.53,152.44,6.6385]
[1723379030442,18.16317,152.53,152.4,18.01904652]
[1723379030598,13.57387,152.53,152.4,18.01904652]
[1723379031029,13.1974,152.53,152.4,18.01904652]
[1723379031416,17.7868,152.53,152.4,18.01904652]
[1723379032349,13.1974,152.53,152.41,45.50196]
[1723379032644,6.2522,152.54,152.41,46.813659]
[1723379032819,13.1974,152.57,152.43,0.12549]
[1723379033023,17.7855,152.57,152.45,0.12549]
[1723379033239,17.7855,152.57,152.45,45.50196]
[1723379033536,17.7855,152.57,152.46,6.6385]
[1723379033743,17.7855,152.57,152.47,45.37647]
[1723379034927,13.1974,152.57,152.47,45.37647]
[1723379035645,6.2522,152.58,152.48,0.12549]
[1723379036259,19.4496,152.62,152.49,15.4263]
[1723379036553,4.5871,152.61,152.5,65.50196]
[1723379037037,4.5872,152.6,152.5,65.50196]
[1723379037240,19.4496,152.62,152.5,65.0]
[1723379037544,4.5882,152.57,152.5,45.0]
[1723379037847,4.5878,152.58,152.5,45.0]
[1723379039140,4.5874,152.59,152.5,45.0]
[1723379041154,0.12549,152.6,152.5,45.0]
[1723379041355,4.5874,152.59,152.5,45.0]
[1723379041525,4.588,152.57,152.5,45.0]
[1723379041922,4.5877,152.58,152.5,45.0]
[1723379042127,4.96387,152.6,152.5,45.0]
[1723379042344,4.71289,152.6,152.5,45.0]
[1723379043130,0.12549,152.61,152.5,46.31113155]
[1723379043422,0.12549,152.61,152.52,6.6144]
[1723379043626,0.25098,152.61,152.53,45.0]
[1723379043852,0.12549,152.57,152.49,15.4263]
[1723379044031,4.5884,152.56,152.49,15.4263]
[1723379044233,0.12549,152.56,152.49,15.4263]
[1723379044651,0.12549,152.57,152.49,15.4263]
[1723379044862,0.25098,152.58,152.49,15.4263]
[1723379045223,0.12549,152.61,152.5,45.0]
[1723379045454,0.12549,152.6,152.5,45.0]
[1723379045655,0.37647,152.6,152.5,45.0]
[1723379046029,393.74333876,152.65,152.5,46.31115471]
[1723379046235,4.5866,152.62,152.51,20.0]
[1723379046440,4.5866,152.62,152.52,45.0]
[1723379047178,393.74333876,152.65,152.52,45.0]
[1723379047478,380.6,152.65,152.54,22.2394]
[1723379047766,0.12549,152.64,152.55,45.0]
[1723379048138,13.1974,152.66,152.55,45.0]
[1723379048553,17.83972093,152.67,152.55,45.0]
[1723379048761,4.5853,152.66,152.55,45.0]
[1723379049337,11.0481,152.67,152.55,45.0]
[1723379049944,391.97845495,152.68,152.55,45.0]
[1723379050348,391.97845495,152.68,152.56,20.0]
[1723379050568,14.56952608,152.69,152.57,45.0]
[1723379050569,10.93649264,152.69,152.57,45.0]
[1723379050751,4.5845,152.69,152.57,45.0]
[1723379050948,380.6,152.7,152.58,15.625]
[1723379051168,380.6,152.7,152.6,6.6144]
[1723379051680,4.5841,152.71,152.61,45.0]
[1723379052039,4.5838,152.71,152.61,45.0]
[1723379052240,0.8166805,152.72,152.61,45.0]
[1723379052451,4.584,152.71,152.61,45.0]
[1723379052656,4.5842,152.7,152.61,45.0]
[1723379053057,0.8166805,152.72,152.61,45.0]
[1723379053370,4.5841,152.71,152.61,45.0]
[1723379053739,0.8166805,152.72,152.63,15.625]
[1723379054140,0.8166805,152.72,152.64,45.0]
[1723379054371,0.8166805,152.72,152.63,15.625]
[1723379055344,0.12549,152.71,152.63,15.625]
[1723379055646,0.50196,152.71,152.63,15.625]
[1723379055973,20.50196,152.71,152.63,15.625]
[1723379056662,4.5842,152.7,152.63,15.625]
[1723379056869,0.12549,152.67,152.63,15.625]
[1723379057051,0.12549,152.67,152.6,6.6144]
[1723379057052,0.50196,152.67,152.6,6.6144]
[1723379057250,0.25098,152.67,152.6,6.6144]
[1723379057762,0.25098,152.66,152.6,6.6144]
[1723379058059,0.12549,152.65,152.6,6.6144]
[1723379058252,0.12549,152.61,152.55,22.2394]
[1723379058452,20.0,152.65,152.55,22.2394]
[1723379058670,0.50196,152.64,152.55,22.2394]
[1723379059267,0.12549,152.65,152.55,22.2394]
[1723379059473,0.50196,152.65,152.55,22.2394]
[1723379059771,0.12549,152.65,152.56,45.0]
[1723379060473,0.12549,152.64,152.56,45.0]
[1723379060965,0.12549,152.65,152.56,45.0]
[1723379061165,0.37647,152.66,152.56,45.0]
[1723379061541,380.6,152.67,152.56,45.0]
[1723379061746,380.6,152.67,152.58,15.625]
[1723379062067,4.5854,152.66,152.58,15.625]
[1723379062272,380.6,152.67,152.59,45.0]
[1723379062862,0.12549,152.66,152.59,45.0]
[1723379063248,380.6,152.67,152.59,45.0]
[1723379064058,0.12549,152.68,152.59,45.0]
[1723379064360,0.25098,152.68,152.59,45.0]
[1723379064567,0.12549,152.68,152.59,45.0]
[1723379065398,0.25098,152.68,152.58,15.625]
[1723379065569,0.12549,152.66,152.58,15.625]
[1723379065750,0.25098,152.66,152.58,15.625]
[1723379065954,0.12549,152.64,152.58,15.625]
[1723379066259,0.25098,152.64,152.58,15.625]
[1723379066655,0.12549,152.65,152.58,15.625]
[1723379066878,0.25098,152.65,152.58,15.625]
[1723379067371,4.5847,152.69,152.58,15.625]
[1723379067564,4.71019,152.69,152.59,45.0]
[1723379068154,4.5849,152.68,152.59,45.0]
[1723379068674,4.71059,152.67,152.59,45.0]
[1723379068974,4.71059,152.67,152.58,15.625]
[1723379068975,0.37647,152.66,152.58,15.625]
[1723379069362,4.96177,152.66,152.58,15.625]
[1723379070170,0.12549,152.64,152.58,15.625]
[1723379070381,0.37647,152.64,152.58,15.625]
[1723379071954,0.37647,152.64,152.55,6.6144]
[1723379072156,0.12549,152.62,152.55,6.6144]
[1723379072461,0.37647,152.62,152.55,6.6144]
[1723379074493,0.25098,152.62,152.55,6.6144]
[1723379074651,0.12549,152.62,152.55,6.6144]
[1723379075661,0.37647,152.62,152.55,6.6144]
[1723379076468,0.12549,152.62,152.55,6.6144]
[1723379077079,4.71199,152.62,152.55,6.6144]
[1723379077284,0.12549,152.61,152.55,6.6144]
[1723379078857,0.12549,152.6,152.55,6.6144]
[1723379079258,0.12549,152.61,152.55,6.6144]
[1723379079460,0.25098,152.61,152.55,6.6144]
[1723379080366,0.25098,152.61,152.5,15.7596]
[1723379080367,0.12549,152.6,152.5,15.7596]
[1723379080570,0.12549,152.55,152.5,15.7596]
[1723379080759,0.50196,152.55,152.5,15.7596]
[1723379082375,380.6,152.61,152.51,21.31108298]
[1723379082565,380.6,152.61,152.51,20.0]
[1723379083265,380.6,152.61,152.52,45.0]
[1723379084590,4.5859,152.64,152.52,45.0]
[1723379084796,0.50196,152.63,152.52,45.0]
[1723379086608,0.50196,152.63,152.53,20.0]
[1723379087107,0.50196,152.63,152.54,21.8843]